Cogmind - Beta 13 @@@ ROGUE MODE // 2024.04.11 @ 19:00:34 Player: Luna Result: Destroyed by G-34 Mercenary with Small Laser Performance ------------- Evolutions (0) 0 Regions Visited (1) 200 Robots Destroyed (16) 80 Value Destroyed (544) 544 Prototype IDs (0) 0 Alien Tech Used (0) 0 Bonus (0) 0 TOTAL SCORE: 824 Bonus ------- None Cogmind --------- Core Integrity 0/250 Matter 279/300 Energy 72/100 System Corruption 0% Temperature Danger (485) Movement Core (1400) Ox27 Location -10/Materials Parts ------- > --- POWER (1) -------- (None) > --- PROPULSION (2) --- (None) > --- UTILITY (2) ------ Huge Storage Unit > --- WEAPON (2) ------- Beam Cannon > --- INVENTORY (25) --- Ion Engine Ion Engine Improved Heat Sink Medium Storage Unit Medium Battery (150) Medium Battery (150) Large Battery (200) Visual Processing Unit Sensor Array Targeting Computer Weapon Shielding Datajack Peak State ------------ > --- POWER ------------ Ion Engine > --- PROPULSION ------- Light Treads Light Treads > --- UTILITY ---------- Huge Storage Unit Weight Redist. System > --- WEAPON ----------- Assault Rifle Assault Rifle > --- INVENTORY -------- Ion Engine Light Treads Improved Heat Sink Medium Storage Unit Medium Battery Medium Battery Large Battery Visual Processing Unit Sensor Array Targeting Computer Weapon Shielding EM Shotgun EM Shotgun Beam Cannon Datajack [Rating: 10] Favorites ----------- Power Ion Engine Engine Ion Engine Propulsion Light Treads Treads Light Treads Utility Weight Redist. System Device Weight Redist. System Storage Medium Storage Unit Weapon Assault Rifle Energy Gun Medium Laser Energy Cannon Beam Cannon Ballistic Gun Assault Rifle Build | -11 -10 ------- Run | Yrd Mat Slots Evolved . | . . Power . | . . Propulsion . | . . Utility . | . . Weapon . | . . Parts Attached 18 | 4 14 Power 3 | . 3 Engine 3 | . 3 Core . | . . Reactor . | . . Propulsion 4 | . 4 Treads 4 | . 4 Leg . | . . Wheel . | . . Hover . | . . Flight . | . . Utility 4 | 1 3 Device 1 | . 1 Storage 3 | 1 2 Processor . | . . Hackware . | . . Protection . | . . Artifact . | . . Weapon 7 | 3 4 Energy Gun 3 | 1 2 Energy Cannon 1 | . 1 Ballistic Gun 3 | 2 1 Ballistic Cannon . | . . Launcher . | . . Special Weapon . | . . Impact Weapon . | . . Slashing Weapon . | . . Piercing Weapon . | . . Special Melee Weapon . | . . Unidentified Prototypes . | . . Parts Lost 6 | . 6 Power 1 | . 1 Propulsion 2 | . 2 Utility 1 | . 1 Weapon 2 | . 2 Highest Loss Streak 6 | . 6 To Critical Strikes . | . . Average Slot Usage (%) 93 | . 93 Engine 13 | . 13 Treads 25 | . 25 Device 13 | . 13 Storage 14 | . 14 Energy Gun 10 | . 10 Ballistic Gun 14 | . 14 Naked Turns . | . . Heaviest Build 91 | 9 91 Greatest Support 46 | 3 46 Greatest Overweight (x) 4 | 2 4 Average Overweight (x) . | 1 . Largest Inventory Capacity 25 | 8 25 Average Capacity 14 | 7 14 Most Carried 16 | 6 16 Average Carried 10 | 4 10 Final Capacity 25 | 8 25 Final Carried 12 | 5 12 Class Distribution -------------------- 100% | Mutant Dominant Class ---------------- Mutant | -10/Materials Resources | -11 -10 ----------- Run | Yrd Mat Matter Collected 481 | 208 273 Remotely . | . . Salvage Created 631 | . 631 Parts 38 | . 38 Haulers Intercepted . | . . Recyclers Shooed 1 | . 1 Parts Field Recycled . | . . Retrieved Matter . | . . Parts Self-Destructed . | . . Prevented . | . . Kills | -11 -10 ------- Run | Yrd Mat Combat Hostiles Destroyed 13 | . 13 Guns 10 | . 10 Cannons 3 | . 3 Classes Destroyed 3 | . 3 Worker 1 | . 1 Watcher 2 | . 2 Grunt 13 | . 13 Best Kill Streak 3 | . 3 Combat Bots Only 3 | . 3 Max Kills in Single Turn 1 | . 1 Gunslinging . | . . Exploded . | . . Melee . | . . Uniques/NPCs Destroyed . | . . Combat | -11 -10 -------- Run | Yrd Mat Hostile Shots Fired 105 | . 105 Missed 29 | . 29 Damage Taken 1039 | . 1039 Core 251 | . 251 Absorbed by Shields . | . . Core Remaining (%) 100 | 100 . Volleys Fired 69 | . 69 Largest 2 | . 2 Hottest 105 | . 105 Shots Fired 118 | . 118 Gun 99 | . 99 Cannon 19 | . 19 Launcher . | . . Special . | . . Kinetic 53 | . 53 Thermal 57 | . 57 Explosive . | . . Electromagnetic 8 | . 8 Robot Hit Streak 13 | . 13 Robot Miss Streak 3 | . 3 Penetration Max . | . . Secondary Targets 1 | . 1 Max Gunslinging Chain 1 | . 1 Shots Hit Robots 76 | . 76 Core Hits 27 | . 27 Critical Kills . | . . Critical Parts Destroyed . | . . Critical Strikes 5 | . 5 Burn 5 | . 5 Melee Attacks . | . . Impact . | . . Slashing . | . . Piercing . | . . Sneak Attacks . | . . Combat Hostiles . | . . Follow-up Attacks . | . . Damage Inflicted 1109 | . 1109 Guns 839 | . 839 Cannons 229 | . 229 Explosions 36 | . 36 Melee . | . . Ramming 5 | . 5 Kinetic 442 | . 442 Thermal 619 | . 619 Explosive . | . . Electromagnetic 43 | . 43 Impact . | . . Slashing . | . . Piercing . | . . Highest Corruption . | . . Average Corruption . | . . Corruption Purged . | . . Corruption Blocked . | . . Overload Shots . | . . Overflow Damage 41 | . 41 Projectiles . | . . Explosions 41 | . 41 Melee . | . . Knockbacks . | . . Impact . | . . Kinetic . | . . Secondary . | . . Self-Inflicted Damage 148 | . 148 Shots 2 | . 2 Rammed 2 | . 2 Targets Rammed 2 | . 2 Kicked . | . . Crushed . | . . Highest Temperature 479 | . 479 Average Temperature 136 | . 136 Received Heat Transfer 495 | . 495 Effects 1 | . 1 Energy Bleed 1 | . 1 Siege Activations . | . . Robots Corrupted . | . . Combat Hostiles . | . . Parts Fried . | . . Impact Corruptions . | . . Robots Melted . | . . Combat Hostiles . | . . Parts Melted 4 | . 4 Heat Transferred 1937 | . 1937 Parts Sabotaged . | . . Parts Stolen . | . . Parts Stripped . | . . Power Chain Reactions . | . . Alert | -11 -10 ------- Run | Yrd Mat Peak Influence 168 | . 168 Initial . | . . Average 40 | . 42 Maximum Alert Level . | . . Low Security (%) 100 | 100 100 Level 1 . | . . Level 2 . | . . Level 3 . | . . Level 4 . | . . Level 5 . | . . High Security . | . . Max Security . | . . Squads Dispatched 3 | . 3 Investigation 3 | . 3 Extermination . | . . Reinforcement . | . . Assault . | . . Garrison . | . . Intercept . | . . Searches Triggered . | . . Construction Impeded . | . . Haulers Reinforced . | . . Active Scanning Responses . | . . Cargo Convoy Interrupts . | . . Stealth | -11 -10 --------- Run | Yrd Mat Distress Signals 1 | . 1 Communications Jammed . | . . Distress Signals . | . . Times Spotted 18 | . 18 Peak Tracking Total 4 | . 4 Tactical Retreats 1 | . 1 Traps | -11 -10 ------- Run | Yrd Mat Traps Triggered 2 | . 2 Indirectly . | . . Trap Hack Attempts . | . . Triggered . | . . Disarmed . | . . Reprogrammed 6 | . 6 Reused 1 | . 1 Traps Extracted . | . . Installed . | . . Triggered 1 | . 1 Machines | -11 -10 ---------- Run | Yrd Mat Machines Disabled 3 | . 3 Max in Single Turn 3 | . 3 Machines Repaired . | . . Machines Dismantled . | . . Machines Sabotaged . | . . Overloaded Fab Kills . | . . Hacking | -11 -10 --------- Run | Yrd Mat Machines Accessed 6 | . 6 Terminals 5 | . 5 Fabricators . | . . Repair Stations . | . . Recycling Units 1 | . 1 Scanalyzers . | . . Garrison Access . | . . Total Hacks 15 | . 15 Successful 11 | . 11 Failed 4 | . 4 Catastrophic . | . . Database Lockouts . | . . Manual 1 | . 1 Terminals 12 | . 12 Fabricators . | . . Repair Stations . | . . Recycling Units 3 | . 3 Scanalyzers . | . . Garrison Access . | . . Terminal Hacks 8 | . 8 Emergency Access Points 1 | . 1 Alert Level 3 | . 3 Unreport Threat 1 | . 1 Reprogram Traps 1 | . 1 Dispatch Records 1 | . 1 Zone Layout 1 | . 1 Fabricator Hacks . | . . Repair Station Hacks . | . . Recycling Unit Hacks 3 | . 3 Process 1 | . 1 Report Inventory 1 | . 1 Retrieve Matter 1 | . 1 Scanalyzer . | . . Garrison Access Hacks . | . . Unauthorized Hacks . | . . Terminals . | . . Fabricators . | . . Repair Stations . | . . Recycling Units . | . . Scanalyzers . | . . Garrison Access . | . . Data Cores Recovered . | . . Used . | . . Hacking Detections 5 | . 5 Full Trace Events 3 | . 3 Feedback Events . | . . Feedback Blocked . | . . Robot Schematics Acquired . | . . Robots Built . | . . Authchips . | . . Time . | . . Total Robot Build Rating . | . . Part Schematics Acquired . | . . Parts Built . | . . Authchips . | . . Time . | . . Total Part Build Rating . | . . Parts Repaired . | . . Time . | . . Parts Recycled . | . . Recycled Matter 5 | . 5 Retrieved Matter . | . . Retrieved Components . | . . Parts Scanalyzed . | . . Part Schematics Acquired . | . . Parts Damaged . | . . Bothacking | -11 -10 ------------ Run | Yrd Mat Used RIF Installer . | . . Robots Hacked . | . . Non-combat . | . . Combat . | . . Robot Hacks Applied . | . . Relay Couplers Released . | . . Fabnet Peak Effective % . | . . Robots Rewired . | . . Allies Hacked . | . . Hacks Repelled . | . . Allies | -11 -10 -------- Run | Yrd Mat Total Allies . | . . Largest Group . | . . Highest-Rated Group . | . . Highest-Rated Ally . | . . Total Orders . | . . Ally Attacks . | . . Total Damage . | . . Kills . | . . Allies Corrupted . | . . Allies Melted . | . . Intel | -11 -10 ------- Run | Yrd Mat Robot Analysis Total . | . . Derelict Logs Recovered . | . . Drone Launches . | . . Drone Recoveries . | . . Exploration | -11 -10 ------------- Run | Yrd Mat Turns Passed 1305 | 60 1245 Spaces Moved 620 | 49 571 Core 91 | 49 42 Treads 529 | . 529 Legs . | . . Wheels . | . . Hover . | . . Flight . | . . Fastest Speed 50 | 50 50 Average Speed 170 | 100 176 Slowest Speed 480 | 150 480 Overloaded Moves . | . . Propulsion Burnouts . | . . Robots Hopped . | . . Cave-ins Triggered . | . . Exploration Rate (%) 41 | 4 79 Regions Visited 1 Branch Regions . Pre-discovered Areas . | . . Known Exits Taken . | . . Unknown Exits Taken 1 | 1 . Scrap Searched . | . . Spaces Dug . | . . Terrain Destroyed 31 | . 31 Melee . | . . Projectile . | . . AOE 31 | . 31 Terrain Rammed . | . . Walls Destroyed . | . . Machines Disabled . | . . Actions | -11 -10 --------- Run | Yrd Mat Total 748 | 60 688 Wait 1 | . 1 Move 619 | 48 571 Hop . | . . Pick Up 31 | 8 23 Fast Attach . | . . Attach 12 | 3 9 Detach . | . . Swap 6 | 1 5 Drop 8 | . 8 Fire 69 | . 69 Melee . | . . Ram . | . . Kick . | . . Crush 2 | . 2 Escape Stasis . | . . Rewire . | . . Trap . | . . Miscellaneous . | . . Route ------- -11/Scrapyard -10/Materials (discovered 2 exits: [*Mat] / [*Min]) History --------- Turn | Location | Event 11 | -11/Scrapyard | Discovered new exit (range 15) 61 | -11/Scrapyard | Entered Materials 313 | -10/Materials | Build established: Mutant 491 | -10/Materials | Discovered new exit (range 9) 730 | -10/Materials | Discovered new exit (range 7) 1243 | -10/Materials | Core integrity fell below 50% 1290 | -10/Materials | Core integrity fell below 20% 1306 | -10/Materials | Destroyed by G-34 Mercenary with Small Laser Last Messages --------------- 01211_ ALERT: Suspicious activity at Terminal M002. Dispatching Investigation squad. 01242_ Fusion Modulator explodes. 01242_ EM Shotgun destroyed. 01242_ Destroyed EM Shotgun. 01242_ Lgt. Treads destroyed. 01242_ Destroyed Lgt. Treads. 01242_ Destroyed Welding Torch. 01242_ Atomic Centrifuge disabled. 01259_ U-05 Engineer lays Concrete. 01264_ U-05 Engineer builds a Wall. 01266_ G-34 Mercenary destroyed. 01269_ U-05 Engineer builds a Wall. 01272_ Weight Redist. System destroyed. 01272_ G-47 Trooper destroyed. 01273_ U-05 Engineer builds a Wall. 01295_ Ion Engine destroyed. 01296_ Lgt. Treads destroyed. 01298_ EM Shotgun destroyed. 01305_ G-34 Mercenary destroyed. Map ----- +----------------------------------------------------+ | ???# #???????????????????####### | | ???#! #?????############### # """ | | ???# ####### # """ | | ???#####+##### < + """ | | ?????# #?# ##### # | | ?????# #?# #???####+### ###### # | | ?????# #?# #???# # ########+######## | | ?????# #?# #???# # ## #? | | ?????# #?# #???# " " # ## """ """ #? | | ?????### ###?# #???# "Y" # ## "" """ """ #? | | ???????# #???# #???# """ # ## "Y """ """ #? | | ????#### ##### #???# # ## "" #? | | ????# #???######## ## #? | | ????# ####??????????# ################? | | ????# #?????????????# #?# "T" =#???? | | ????# ######????????# #?# #???? | | ????####* = # #######?# ### """ """ #???? | | ???????#[ # [ # ### # """ """ #???? | | ???????#^= ^+ #;;;;;;;# + """ """ #???? | | ???????#%#### """ # # # #???? | | ???????#=#??# "" # g # = #???? | | ???????#!#??# "" # %! # ##### | | ???????#%#??? # [ ########+## | | ???????# ########## #??????# ## "" | | ???????# *%= m ######?# ## "" | | ???????+ =%! w@ ; ##"""#?# ## "" | | ???????# * ; ##"T"### ## | | ????????##+#### ; ; # "" | | ??????????????# ; =; + "" | | ??????????????# # # # "" | | ??????????????# ######+## # | | ??????????????# #### ##### | | ??????????????+ #" #??? | | ????????????? # #"" #??? | | ???????????? #? ######### #|| #??? | | ???????????" ?# ?????????# #"" < #??? | | ??????????? ??#???????????# #|| #??? | | ??????????????????????????# #"" #??? | | ????????????????????? """# #" #??? | | ????????????????????? """# #### ##### | | ????????????????????? #%! # = | | ????????????????????? #= + % | | ????????????????????? # #""" | | ????????????????????? # #""" | | ????????????????????? # #""" | | ????????????????????? ## ##T####### | | ?????????????????????####### ############## | | ???????????????????????????# # ###### | | ???????????????????????##### # """ # | | ???????????????????????# # # """ # | +----------------------------------------------------+ Best States ------------- Heat Dissipation 25 Energy Generation 10 Energy Capacity 250 Matter Stores 300 Matter Capacity 300 Sight Range 16 Terrain Scan Density 10 Additional Mass Support 6 Evasion (%) 50 Recoil Reduction 2 Item Schematics ----------------- None Robot Schematics ------------------ None Fabricated ------------ Nothing Alien Tech Used ----------------- None Achievements -------------- Everything Is Under Control Challenges ------------ None Game ------ Seed SupercompositeIonicScrap Manual? 0 Play Time 00:21:48 Cumulative 3.9 hours Start 2024.04.10 @ 15:57:15 End 2024.04.11 @ 19:00:34 Sessions 3 Manual Loads 0 Difficulty Rogue Special Mode None Game No. 4 Rogue 3 Adventurer 0 Explorer 1 Win Type - Total 0 Types 0/0/0/0/0/0/0/0/0 Lore% 2 Gallery% 10 Achievement% 10 Wizard Run 0 Options --------- Layout 1 ASCII 0 Keyboard 0 Movement Mouse Keybinds 0 Fullscreen 2 Font 48/Smallcaps Map View 50x35 Zoom Use 0% Tactical HUD 1 Map Filters NONE Filters NONE Steam 1 RUN: 98f4995a-9400-42c4-a6ff-f17548625812